[Event "XXVII RUS-chT Premier 2020"]
[Site "Sochi"]
[Date "2020.11.19"]
[Round "1.10"]
[White "Makarian, Rudik"]
[Black "Smirnov, Timofey"]
[Result "1-0"]
[ECO "D10"]
[WhiteElo "2441"]
[BlackElo "2394"]
[Annotator "NA"]
[PlyCount "143"]
[EventDate "2020.11.19"]
[EventType "team-tourn"]
[EventCountry "RUS"]
[SourceTitle "playchess.com"]
[Source "ChessBase"]
[SourceQuality "1"]
[TimeControl "40/5400+30:1800+30"]

1. d4 {[%emt 0:00:00]} d5 {[%emt 0:00:00]} 2. c4 {[%emt 0:00:00]} c6 {[%emt 0:00:00]} 3. Nc3 {[%emt 0:00:00]} Nf6 {[%emt 0:00:50]} 4. e3 {[%emt 0:00:00]} g6 {[%emt 0:03:37]} 5. Nf3 {[%emt 0:00:02]} Bg7 {[%emt 0:00:18]} 6. Be2 {[%emt 0:00:43]} O-O {[%emt 0:00:53]} 7. O-O {[%emt 0:00:07]} Re8 {[%emt 0:06:09]} 8. h3 {[%emt 0:08:20]} Nbd7 {[%emt 0:03:15]} 9. cxd5 {[%emt 0:04:32]} Nxd5 {[%emt 0:01:16]} 10. e4 {[%emt 0:04:11]} N5b6 {[%emt 0:02:17] [#]} (10... Nxc3 $11 11. bxc3 e5) 11. Bg5 {[%emt 0:12:37]} (11. a4 $1 $16 {[%cal Ra4a5]} a5 12. Be3) 11... Nf8 {[%emt 0:06:12]} 12. Qd2 {[%emt 0:00:29]} Be6 {[%emt 0:04:15]} 13. b3 {[%emt 0:00:32]} f6 {[%emt 0:01:01]} 14. Be3 {[%emt 0:14:15]} Bf7 {[%emt 0:00:27]} 15. Qb2 {[%emt 0:09:00]} h6 {[%emt 0:17:18]} 16. Rfd1 {[%emt 0:01:28]} Qc7 $16 {[%emt 0:07:53]} 17. Rac1 {[%emt 0:02:10]} Rad8 {[%emt 0:04:32]} 18. d5 {[%emt 0:01:41]} Qb8 {[%emt 0:03:11]} 19. dxc6 {[%emt 0:00:37]} bxc6 {[%emt 0:00:12]} 20. Rxd8 {[%emt 0:02:08]} Rxd8 {[%emt 0:00:17]} 21. Qa3 {[%emt 0:00:03]} e5 {[%emt 0:01:39]} 22. Qa6 {[%emt 0:09:43]} Nfd7 {[%emt 0:13:34]} 23. Na4 {[%emt 0:01:23]} Rc8 {[%emt 0:01:08]} 24. Nxb6 {[%emt 0:06:06]} axb6 {[%emt 0:06:55]} 25. Bb5 {[%emt 0:01:16]} Nc5 {[%emt 0:01:51]} 26. Bxc5 {[%emt 0:00:44]} cxb5 {[%emt 0:00:03]} 27. Be3 {[%emt 0:00:37]} Rxc1+ {[%emt 0:01:14]} 28. Bxc1 {[%emt 0:00:02]} Qd6 {[%emt 0:03:45]} 29. Be3 {[%emt 0:03:48]} Qd1+ {[%emt 0:03:08]} 30. Kh2 {[%emt 0:02:54]} Qc2 {[%emt 0:00:18]} 31. Qxb5 {[%emt 0:05:10]} Qxa2 {[%emt 0:00:37]} 32. Nd2 {[%emt 0:00:17]} f5 {[%emt 0:00:36]} 33. Nc4 {[%emt 0:00:10]} Qe2 {[%emt 0:01:52]} 34. Qd7 {[%emt 0:06:00]} Qc2 {[%emt 0:01:17]} 35. Nd6 {[%emt 0:01:45]} Qxb3 {[%emt 0:00:22]} 36. exf5 {[%emt 0:00:07]} gxf5 {[%emt 0:00:14]} 37. Nxf5 {[%emt 0:01:06]} Qe6 {[%emt 0:00:25]} 38. Qd8+ {[%emt 0:00:10]} Kh7 {[%emt 0:00:07]} 39. Nxg7 {[%emt 0:00:34]} Kxg7 {[%emt 0:00:06]} 40. Bxb6 {[%emt 0:00:00]} Qf6 {[%emt 0:00:00]} 41. Qc7 {[%emt 0:00:21]} Qf4+ {[%emt 0:04:17]} 42. Kg1 {[%emt 0:00:28]} h5 {[%emt 0:01:45]} 43. Be3 {[%emt 0:00:34]} Qf5 {[%emt 0:01:51]} 44. Qd8 {[%emt 0:00:20]} Qf6 {[%emt 0:01:02]} 45. Qb8 {[%emt 0:00:06]} Qe6 {[%emt 0:02:49]} 46. Bc5 {[%emt 0:00:51]} Qe8 {[%emt 0:02:19]} 47. Qd6 {[%emt 0:00:43]} Qe6 {[%emt 0:00:27]} 48. Qf8+ {[%emt 0:01:12]} Kh7 {[%emt 0:00:14]} 49. Be3 {[%emt 0:01:14]} Qf6 {[%emt 0:00:41]} 50. Kh2 {[%emt 0:00:43]} Qe6 {[%emt 0:00:49]} 51. Qd8 {[%emt 0:01:16]} Qe8 {[%emt 0:01:24]} 52. Qg5 {[%emt 0:00:39]} Qe6 {[%emt 0:00:04]} 53. Bd2 {[%emt 0:01:18]} Bg6 {[%emt 0:01:48]} 54. Bc3 {[%emt 0:01:48]} e4 {[%emt 0:00:12]} 55. Qd8 {[%emt 0:01:23]} Qg8 {[%emt 0:03:45]} 56. Qf6 {[%emt 0:00:31]} Bf7 {[%emt 0:01:00]} 57. Bd4 {[%emt 0:01:59]} Bg6 {[%emt 0:00:07]} 58. Qe5 {[%emt 0:00:32]} Qf8 {[%emt 0:01:00]} 59. Bc3 {[%emt 0:01:06]} Kh6 {[%emt 0:00:24]} 60. Bd4 {[%emt 0:01:56]} Kh7 {[%emt 0:00:06]} 61. Qg5 {[%emt 0:00:41]} Qd6+ {[%emt 0:00:37]} 62. Be5 {[%emt 0:00:23]} Qf8 {[%emt 0:00:11]} 63. Kg1 {[%emt 0:00:49]} Qf5 {[%emt 0:00:23]} 64. Qe7+ {[%emt 0:00:10]} Qf7 {[%emt 0:00:03]} 65. Qd8 {[%emt 0:00:06]} Qg8 {[%emt 0:00:26]} 66. Qf6 {[%emt 0:00:03]} Bf7 {[%emt 0:00:25]} 67. Kh2 {[%emt 0:00:12]} Bg6 {[%emt 0:00:06]} 68. g4 {[%emt 0:01:56]} e3 {[%emt 0:03:49]} 69. fxe3 {[%emt 0:00:13]} Be4 {[%emt 0:01:57]} 70. g5 {[%emt 0:01:33]} Bg6 {[%emt 0:00:06]} 71. Kg3 {[%emt 0:01:59]} h4+ {[%emt 0:00:10]} 72. Kxh4 {[%emt 0:00:16]} 1-0

[Event "XXVII RUS-chT Premier 2020"]
[Site "Sochi"]
[Date "2020.11.19"]
[Round "1.11"]
[White "Tsoi, Dmitry"]
[Black "Petrov, Nikita"]
[Result "1/2-1/2"]
[ECO "A03"]
[WhiteElo "2315"]
[BlackElo "2577"]
[Annotator "ChessBase"]
[PlyCount "135"]
[EventDate "2020.11.19"]
[EventType "team-tourn"]
[EventCountry "RUS"]
[SourceTitle "playchess.com"]
[Source "ChessBase"]
[SourceQuality "1"]
[TimeControl "40/5400+30:1800+30"]

1. f4 {[%emt 0:00:00]} d5 {[%emt 0:00:00]} 2. Nf3 {[%emt 0:00:00]} Nf6 {[%emt 0:00:00]} 3. e3 {[%emt 0:00:00]} c5 {[%emt 0:00:09]} 4. d4 {[%emt 0:00:11]} Nc6 {[%emt 0:00:48]} 5. c3 {[%emt 0:00:07]} Bf5 {[%emt 0:01:58]} 6. Ne5 {[%emt 0:02:49]} e6 {[%emt 0:02:48]} 7. Bb5 {[%emt 0:04:30]} Qb6 {[%emt 0:08:07]} 8. Qa4 {[%emt 0:02:14]} Rc8 {[%emt 0:01:26]} 9. O-O {[%emt 0:03:27]} Bd6 {[%emt 0:03:14]} 10. Nd2 {[%emt 0:09:38]} O-O {[%emt 0:01:58]} 11. Ndf3 {[%emt 0:07:22]} Ne7 {[%emt 0:21:05]} 12. Be2 {[%emt 0:00:50]} h6 {[%emt 0:00:36]} 13. Qd1 {[%emt 0:04:10]} Qc7 {[%emt 0:05:12]} 14. a3 {[%emt 0:06:12]} Bh7 {[%emt 0:01:38]} 15. Bd3 {[%emt 0:17:05]} Bxd3 {[%emt 0:08:16]} 16. Nxd3 {[%emt 0:00:12]} Ne4 {[%emt 0:01:52]} 17. Nd2 {[%emt 0:01:08]} f5 {[%emt 0:06:30]} 18. Qe2 {[%emt 0:03:46]} b6 {[%emt 0:06:06]} 19. Kh1 {[%emt 0:01:58]} Qb7 {[%emt 0:02:06]} 20. Ne1 {[%emt 0:07:08]} Nc6 {[%emt 0:05:08]} 21. Nxe4 {[%emt 0:03:11]} fxe4 {[%emt 0:00:52]} 22. Bd2 {[%emt 0:01:17]} b5 {[%emt 0:07:09]} 23. Nc2 {[%emt 0:00:21]} c4 {[%emt 0:00:32]} 24. Qg4 {[%emt 0:03:36]} Qf7 {[%emt 0:00:38]} 25. Qh3 {[%emt 0:00:25]} a5 {[%emt 0:02:42]} 26. g4 {[%emt 0:00:39]} Ra8 {[%emt 0:02:16]} 27. f5 {[%emt 0:03:29]} Ne7 {[%emt 0:01:50]} 28. Rf2 {[%emt 0:03:07]} Bc7 {[%emt 0:05:50]} 29. Raf1 {[%emt 0:02:36]} Ra6 {[%emt 0:00:57]} 30. f6 {[%emt 0:00:49]} gxf6 {[%emt 0:00:31]} 31. Qxh6 {[%emt 0:00:15]} Qg7 {[%emt 0:00:12]} 32. Qh5 {[%emt 0:01:18]} Raa8 {[%emt 0:01:54]} 33. Ne1 {[%emt 0:03:37]} Rf7 {[%emt 0:00:57]} 34. Ng2 {[%emt 0:02:16]} Raf8 {[%emt 0:00:11]} 35. Nf4 {[%emt 0:00:29]} Bxf4 {[%emt 0:00:06]} 36. Rxf4 {[%emt 0:00:22]} Qg6 {[%emt 0:01:01]} 37. Qh4 {[%emt 0:03:09]} Qg5 {[%emt 0:00:43]} 38. Qxg5+ {[%emt 0:01:14]} fxg5 {[%emt 0:00:04]} 39. Rxf7 {[%emt 0:00:07]} Rxf7 {[%emt 0:00:01]} 40. Rxf7 {[%emt 0:00:00]} Kxf7 {[%emt 0:00:00]} 41. Kg2 {[%emt 0:01:17]} e5 {[%emt 0:06:43]} 42. Be1 {[%emt 0:02:45]} Nc6 {[%emt 0:04:42]} 43. Bg3 {[%emt 0:02:35]} exd4 {[%emt 0:07:52]} 44. exd4 {[%emt 0:00:38]} b4 {[%emt 0:03:01]} 45. axb4 {[%emt 0:00:05]} axb4 {[%emt 0:00:03]} 46. Bf2 {[%emt 0:00:25]} bxc3 {[%emt 0:04:47]} 47. bxc3 {[%emt 0:00:11]} Na7 {[%emt 0:01:02]} 48. Be3 {[%emt 0:00:15]} Kg6 {[%emt 0:00:55]} 49. Kf2 {[%emt 0:00:22]} Nb5 {[%emt 0:00:51]} 50. Bd2 {[%emt 0:00:05]} Nc7 {[%emt 0:00:46]} 51. Kg3 {[%emt 0:00:12]} Ne6 {[%emt 0:00:05]} 52. Be3 {[%emt 0:00:26]} Kf6 {[%emt 0:00:44]} 53. Bd2 {[%emt 0:00:09]} Kg6 {[%emt 0:02:34]} 54. Be3 {[%emt 0:00:06]} Nc7 {[%emt 0:00:18]} 55. Bd2 {[%emt 0:00:14]} Na8 {[%emt 0:00:22]} 56. h4 {[%emt 0:02:37]} gxh4+ {[%emt 0:00:04]} 57. Kxh4 {[%emt 0:00:02]} Nc7 {[%emt 0:00:44]} 58. g5 {[%emt 0:03:21]} Nb5 {[%emt 0:02:32]} 59. Kg4 {[%emt 0:01:23]} Na3 {[%emt 0:02:29]} 60. Kf4 {[%emt 0:01:13]} Nc2 {[%emt 0:00:04]} 61. Ke5 {[%emt 0:07:58]} e3 {[%emt 0:00:09]} 62. Bc1 {[%emt 0:00:04]} e2 {[%emt 0:00:24]} 63. Bd2 {[%emt 0:00:03]} Ne3 {[%emt 0:01:18]} 64. Ke6 {[%emt 0:01:47]} Nf1 {[%emt 0:00:51]} 65. Be1 {[%emt 0:00:05]} Ne3 {[%emt 0:00:02]} 66. Bd2 {[%emt 0:00:05]} Nf1 {[%emt 0:01:22]} 67. Be1 {[%emt 0:00:04]} Ne3 {[%emt 0:00:02]} 68. Bd2 {[%emt 0:00:04]} 1/2-1/2

[Event "XXVII RUS-chT Premier 2020"]
[Site "Sochi"]
[Date "2020.11.19"]
[Round "1.12"]
[White "Novikov, Stanislav"]
[Black "Ter-Saakian, Grigorii"]
[Result "1-0"]
[ECO "B10"]
[WhiteElo "2527"]
[BlackElo "2296"]
[Annotator "ChessBase"]
[PlyCount "82"]
[EventDate "2020.11.19"]
[EventType "team-tourn"]
[EventCountry "RUS"]
[SourceTitle "playchess.com"]
[Source "ChessBase"]
[SourceQuality "1"]
[TimeControl "40/5400+30:1800+30"]

1. c4 {[%emt 0:00:00]} c6 {[%emt 0:00:00]} 2. e4 {[%emt 0:02:54]} d5 {[%emt 0:00:47]} 3. exd5 {[%emt 0:00:10]} cxd5 {[%emt 0:00:07]} 4. cxd5 {[%emt 0:00:18]} Nf6 {[%emt 0:00:17]} 5. Nc3 {[%emt 0:00:50]} Nxd5 {[%emt 0:01:39]} 6. Nf3 {[%emt 0:01:42]} e6 {[%emt 0:01:48]} 7. d4 {[%emt 0:00:59]} Be7 {[%emt 0:01:40]} 8. Bd3 {[%emt 0:01:01]} Nc6 {[%emt 0:00:19]} 9. O-O {[%emt 0:00:16]} Bf6 {[%emt 0:02:08]} 10. Be4 {[%emt 0:02:38]} Nce7 {[%emt 0:04:48]} 11. Qd3 {[%emt 0:10:58]} h6 {[%emt 0:04:04]} 12. Ne5 {[%emt 0:03:58]} a6 {[%emt 0:06:53]} 13. Ng4 {[%emt 0:13:56]} b6 {[%emt 0:07:32]} 14. Nxf6+ {[%emt 0:17:08]} gxf6 {[%emt 0:00:18]} 15. Nxd5 {[%emt 0:00:30]} exd5 {[%emt 0:09:20]} 16. Bf3 {[%emt 0:00:51]} Be6 {[%emt 0:00:41]} 17. Bf4 {[%emt 0:03:53]} Ng6 {[%emt 0:01:04]} 18. Bg3 {[%emt 0:01:17]} f5 {[%emt 0:00:54]} 19. Rfe1 {[%emt 0:00:46]} O-O {[%emt 0:03:58]} 20. Bh5 {[%emt 0:07:11]} Qg5 {[%emt 0:02:31]} 21. Bxg6 {[%emt 0:02:23]} Qxg6 {[%emt 0:00:01]} 22. Rac1 {[%emt 0:09:55]} b5 {[%emt 0:08:26]} 23. Rc6 {[%emt 0:01:37]} Rfc8 {[%emt 0:00:22]} 24. Rc5 {[%emt 0:06:16]} Kh7 {[%emt 0:01:05]} 25. Bf4 {[%emt 0:00:55]} Rg8 {[%emt 0:03:37]} 26. g3 {[%emt 0:02:03]} Qg4 {[%emt 0:11:42]} 27. Qe3 {[%emt 0:00:20]} Qg7 {[%emt 0:10:33]} 28. Rc6 {[%emt 0:03:52]} Rgc8 {[%emt 0:02:26]} 29. Rec1 {[%emt 0:02:12]} Qf8 {[%emt 0:00:28]} 30. h3 {[%emt 0:02:48]} Rxc6 {[%emt 0:04:08]} 31. Rxc6 {[%emt 0:00:03]} Qe8 {[%emt 0:02:58]} 32. Rb6 {[%emt 0:00:45]} Qd8 {[%emt 0:01:50]} 33. Rb7 {[%emt 0:00:57]} Qf6 {[%emt 0:00:01]} 34. Rb6 {[%emt 0:00:32]} Qg6 {[%emt 0:00:44]} 35. Kg2 {[%emt 0:00:30]} h5 {[%emt 0:00:33]} 36. Qa3 {[%emt 0:00:59]} h4 {[%emt 0:03:33]} 37. Qe7 {[%emt 0:00:10]} hxg3 {[%emt 0:00:28]} 38. Qh4+ {[%emt 0:00:16]} Kg8 {[%emt 0:00:03]} 39. Be5 {[%emt 0:00:24]} gxf2+ {[%emt 0:04:17]} 40. Kxf2 {[%emt 0:00:00]} f6 {[%emt 0:00:00]} 41. Bxf6 {[%emt 0:03:13]} Rc8 1-0

[Event "XXVII RUS-chT Premier 2020"]
[Site "Sochi"]
[Date "2020.11.19"]
[Round "1.14"]
[White "Timofeev, Artyom"]
[Black "Kobalia, Mikhail"]
[Result "1-0"]
[ECO "A06"]
[WhiteElo "2585"]
[BlackElo "2590"]
[Annotator "ChessBase"]
[PlyCount "93"]
[EventDate "2020.11.19"]
[EventType "team-tourn"]
[EventCountry "RUS"]
[SourceTitle "playchess.com"]
[Source "ChessBase"]
[SourceQuality "1"]
[TimeControl "40/5400+30:1800+30"]

1. Nf3 {[%emt 0:00:00]} d5 {[%emt 0:00:00]} 2. b3 {[%emt 0:00:00]} Bg4 {[%emt 0:01:56]} 3. Bb2 {[%emt 0:01:03]} Nd7 {[%emt 0:00:27]} 4. g3 {[%emt 0:02:32]} e5 {[%emt 0:02:32]} 5. d3 {[%emt 0:08:35]} Bd6 {[%emt 0:06:34]} 6. Nbd2 {[%emt 0:03:38]} Ngf6 {[%emt 0:01:20]} 7. e4 {[%emt 0:02:02]} Bb4 {[%emt 0:11:19]} 8. c3 {[%emt 0:02:44]} Bd6 {[%emt 0:03:00]} 9. Be2 {[%emt 0:03:25]} O-O {[%emt 0:05:22]} 10. O-O {[%emt 0:11:19]} h6 {[%emt 0:07:46]} 11. Re1 {[%emt 0:01:19]} Re8 {[%emt 0:00:40]} 12. exd5 {[%emt 0:06:59]} Nxd5 {[%emt 0:00:27]} 13. Nc4 {[%emt 0:00:05]} Bh3 {[%emt 0:06:34]} 14. Nxd6 {[%emt 0:02:46]} cxd6 {[%emt 0:00:04]} 15. c4 {[%emt 0:00:13]} Nb4 {[%emt 0:02:03]} 16. Qd2 {[%emt 0:09:17]} Nc6 {[%emt 0:07:44]} 17. d4 {[%emt 0:04:44]} Qf6 {[%emt 0:06:04]} 18. Rad1 {[%emt 0:06:26]} Rad8 {[%emt 0:01:44]} 19. Bc3 {[%emt 0:12:52]} Bg4 {[%emt 0:10:38]} 20. Kg2 {[%emt 0:04:08]} e4 {[%emt 0:01:55]} 21. Ng1 {[%emt 0:00:25]} Qg6 {[%emt 0:01:25]} 22. Bxg4 {[%emt 0:03:29]} Qxg4 {[%emt 0:00:05]} 23. Qe2 {[%emt 0:00:07]} Qxe2 {[%emt 0:04:37]} 24. Rxe2 {[%emt 0:01:40]} f5 {[%emt 0:00:43]} 25. d5 {[%emt 0:02:12]} Nce5 {[%emt 0:00:14]} 26. f3 {[%emt 0:01:06]} Nc5 {[%emt 0:05:24]} 27. Bd4 {[%emt 0:00:52]} Ned3 {[%emt 0:01:44]} 28. fxe4 {[%emt 0:02:14]} fxe4 {[%emt 0:00:26]} 29. Nh3 {[%emt 0:00:48]} a5 {[%emt 0:01:23]} 30. Nf2 {[%emt 0:03:28]} Nxf2 {[%emt 0:01:37]} 31. Kxf2 {[%emt 0:00:10]} Nd3+ {[%emt 0:00:11]} 32. Ke3 {[%emt 0:00:11]} a4 {[%emt 0:00:54]} 33. bxa4 {[%emt 0:03:00]} Rc8 {[%emt 0:02:24]} 34. Rc2 {[%emt 0:01:24]} Re7 {[%emt 0:03:18]} 35. Rb1 {[%emt 0:00:54]} Rf8 {[%emt 0:00:06]} 36. Rb6 {[%emt 0:00:45]} Rf3+ {[%emt 0:01:26]} 37. Ke2 {[%emt 0:00:16]} Ne5 {[%emt 0:03:49]} 38. Rxd6 {[%emt 0:00:58]} e3 {[%emt 0:00:34]} 39. Bxe5 {[%emt 0:00:41]} Rf2+ {[%emt 0:00:04]} 40. Kd3 {[%emt 0:00:00]} Rxe5 {[%emt 0:00:00]} 41. Re2 {[%emt 0:05:34]} Rxe2 {[%emt 0:06:48]} 42. Kxe2 {[%emt 0:00:17]} Re4 {[%emt 0:00:09]} 43. c5 {[%emt 0:02:35]} Rc4 {[%emt 0:00:49]} 44. Rd8+ {[%emt 0:00:15]} Kf7 {[%emt 0:00:09]} 45. Rc8 {[%emt 0:00:18]} Rxa4 {[%emt 0:02:08]} 46. d6 {[%emt 0:05:52]} Ke6 {[%emt 0:02:11]} 47. Re8+ {[%emt 0:00:38]} 1-0

[Event "XXVII RUS-chT Premier 2020"]
[Site "Sochi"]
[Date "2020.11.19"]
[Round "1.15"]
[White "Demidov, Mikhail"]
[Black "Gaifullin, Artur"]
[Result "1-0"]
[ECO "D38"]
[WhiteElo "2526"]
[BlackElo "2460"]
[Annotator "ChessBase"]
[PlyCount "129"]
[EventDate "2020.11.19"]
[EventType "team-tourn"]
[EventCountry "RUS"]
[SourceTitle "playchess.com"]
[Source "ChessBase"]
[SourceQuality "1"]
[TimeControl "40/5400+30:1800+30"]

1. d4 {[%emt 0:00:00]} Nf6 {[%emt 0:00:00]} 2. Nf3 {[%emt 0:00:21]} e6 {[%emt 0:00:00]} 3. c4 {[%emt 0:00:26]} d5 {[%emt 0:00:00]} 4. Nc3 {[%emt 0:00:16]} Bb4 {[%emt 0:00:13]} 5. e3 {[%emt 0:00:27]} O-O {[%emt 0:00:33]} 6. Bd2 {[%emt 0:00:11]} b6 {[%emt 0:01:07]} 7. cxd5 {[%emt 0:00:40]} exd5 {[%emt 0:00:37]} 8. Bd3 {[%emt 0:00:10]} Bb7 {[%emt 0:00:52]} 9. O-O {[%emt 0:00:20]} a6 {[%emt 0:00:24]} 10. Rc1 {[%emt 0:06:04]} Nbd7 {[%emt 0:03:43]} 11. Ne5 {[%emt 0:00:32]} Nxe5 {[%emt 0:08:39]} 12. dxe5 {[%emt 0:01:25]} Nd7 {[%emt 0:00:58]} 13. f4 {[%emt 0:01:11]} Nc5 {[%emt 0:00:56]} 14. Bb1 {[%emt 0:03:25]} d4 {[%emt 0:13:46]} 15. Ne2 {[%emt 0:02:24]} Qd5 {[%emt 0:06:14]} 16. Rf2 {[%emt 0:11:54]} dxe3 {[%emt 0:02:02]} 17. Bxe3 {[%emt 0:00:27]} Qxd1+ {[%emt 0:02:26]} 18. Rxd1 {[%emt 0:00:07]} Rad8 {[%emt 0:00:28]} 19. Rff1 {[%emt 0:07:13]} Ne4 {[%emt 0:05:55]} 20. Nd4 {[%emt 0:08:55]} Bc5 {[%emt 0:06:14]} 21. Rd3 {[%emt 0:13:53]} a5 {[%emt 0:03:36]} 22. Re1 {[%emt 0:10:07]} g6 {[%emt 0:17:56]} 23. Nb3 {[%emt 0:06:18]} Bb4 {[%emt 0:07:04]} 24. Red1 {[%emt 0:04:59]} Rxd3 {[%emt 0:01:39]} 25. Rxd3 {[%emt 0:01:46]} a4 {[%emt 0:00:44]} 26. Nc1 {[%emt 0:03:43]} Bc5 {[%emt 0:02:26]} 27. Bxc5 {[%emt 0:05:29]} Nxc5 {[%emt 0:00:14]} 28. Rc3 {[%emt 0:00:22]} Rd8 {[%emt 0:01:30]} 29. Nd3 {[%emt 0:01:35]} Ne6 {[%emt 0:01:01]} 30. Kf2 {[%emt 0:02:56]} Rd4 {[%emt 0:02:30]} 31. g3 {[%emt 0:00:34]} c5 {[%emt 0:00:40]} 32. Bc2 {[%emt 0:05:43]} b5 {[%emt 0:02:20]} 33. b3 {[%emt 0:02:02]} axb3 {[%emt 0:01:40]} 34. axb3 {[%emt 0:00:08]} Ba6 {[%emt 0:02:05]} 35. b4 {[%emt 0:00:47]} c4 {[%emt 0:00:37]} 36. Ne1 {[%emt 0:00:09]} Rd2+ {[%emt 0:01:00]} 37. Ke3 {[%emt 0:00:15]} Rxh2 {[%emt 0:00:09]} 38. Ra3 {[%emt 0:00:57]} Bb7 {[%emt 0:00:27]} 39. Ra7 {[%emt 0:00:11]} Bd5 {[%emt 0:00:54]} 40. Rd7 {[%emt 0:00:00]} Bc6 {[%emt 0:00:00]} 41. Rd6 {[%emt 0:00:51]} Be8 {[%emt 0:01:47]} 42. Rb6 {[%emt 0:03:47]} Kf8 {[%emt 0:00:44]} 43. Be4 {[%emt 0:02:36]} Rb2 {[%emt 0:01:03]} 44. Nc2 {[%emt 0:00:47]} Bd7 {[%emt 0:02:07]} 45. Rb7 {[%emt 0:05:40]} Ke8 {[%emt 0:00:17]} 46. Ra7 {[%emt 0:00:41]} h5 {[%emt 0:05:39]} 47. Ra8+ {[%emt 0:00:43]} Ke7 {[%emt 0:00:04]} 48. Ra7 {[%emt 0:00:06]} Rb3+ {[%emt 0:04:56]} 49. Kf2 {[%emt 0:00:20]} h4 {[%emt 0:00:37]} 50. gxh4 {[%emt 0:00:53]} Nxf4 {[%emt 0:03:10]} 51. Nd4 {[%emt 0:01:40]} Rb2+ {[%emt 0:10:49]} 52. Ke3 {[%emt 0:05:37]} Ng2+ {[%emt 0:00:08]} 53. Bxg2 {[%emt 0:02:16]} Rxg2 {[%emt 0:00:02]} 54. Nxb5 {[%emt 0:01:19]} Rg3+ {[%emt 0:04:42]} 55. Kd4 {[%emt 0:00:43]} Ke6 {[%emt 0:01:11]} 56. Ra6+ {[%emt 0:04:05]} Ke7 {[%emt 0:00:02]} 57. Ra7 {[%emt 0:02:21]} Ke6 {[%emt 0:00:10]} 58. Ra6+ {[%emt 0:01:00]} Ke7 {[%emt 0:00:07]} 59. Nc7 {[%emt 0:00:22]} Kd8 {[%emt 0:03:18]} 60. Nd5 {[%emt 0:00:41]} Be6 {[%emt 0:00:05]} 61. Rd6+ {[%emt 0:01:59]} Kc8 {[%emt 0:00:12]} 62. Rc6+ {[%emt 0:00:55]} Kb7 {[%emt 0:02:07]} 63. Rc7+ {[%emt 0:01:00]} Ka6 {[%emt 0:01:24]} 64. Kc5 {[%emt 0:00:44]} Rb3 {[%emt 0:00:36]} 65. Nc3 {[%emt 0:00:18]} 1-0

[Event "XXVII RUS-chT Premier 2020"]
[Site "Sochi"]
[Date "2020.11.19"]
[Round "1.16"]
[White "Makhmutov, Rail"]
[Black "Murzin, Volodar"]
[Result "1/2-1/2"]
[ECO "E92"]
[WhiteElo "2442"]
[BlackElo "2470"]
[Annotator "ChessBase"]
[PlyCount "85"]
[EventDate "2020.11.19"]
[EventType "team-tourn"]
[EventCountry "RUS"]
[SourceTitle "playchess.com"]
[Source "ChessBase"]
[SourceQuality "1"]
[TimeControl "40/5400+30:1800+30"]

1. d4 {[%emt 0:00:00]} Nf6 {[%emt 0:00:00]} 2. c4 {[%emt 0:00:00]} g6 {[%emt 0:00:00]} 3. Nc3 {[%emt 0:00:00]} Bg7 {[%emt 0:00:05]} 4. e4 {[%emt 0:00:19]} d6 {[%emt 0:00:10]} 5. Nf3 {[%emt 0:00:09]} O-O {[%emt 0:00:09]} 6. Be2 {[%emt 0:00:05]} e5 {[%emt 0:01:58]} 7. Be3 {[%emt 0:00:36]} Ng4 {[%emt 0:06:53]} 8. Bg5 {[%emt 0:00:29]} f6 {[%emt 0:01:13]} 9. Bc1 {[%emt 0:00:09]} Nc6 {[%emt 0:00:38]} 10. O-O {[%emt 0:01:59]} exd4 {[%emt 0:13:24]} 11. Nxd4 {[%emt 0:00:50]} Nxd4 {[%emt 0:00:07]} 12. Qxd4 {[%emt 0:01:46]} f5 {[%emt 0:01:45]} 13. Qd5+ {[%emt 0:00:30]} Kh8 {[%emt 0:00:12]} 14. exf5 {[%emt 0:00:10]} Bxf5 {[%emt 0:05:39]} 15. Bxg4 {[%emt 0:05:57]} Bxg4 {[%emt 0:00:11]} 16. Be3 {[%emt 0:00:05]} Bd7 {[%emt 0:04:26]} 17. Bd4 {[%emt 0:05:17]} Bc6 {[%emt 0:00:15]} 18. Bxg7+ {[%emt 0:09:03]} Kxg7 {[%emt 0:00:07]} 19. Qd2 {[%emt 0:00:33]} Qf6 {[%emt 0:08:19]} 20. Nd5 {[%emt 0:07:21]} Bxd5 {[%emt 0:04:03]} 21. cxd5 {[%emt 0:01:35]} Rae8 {[%emt 0:07:43]} 22. Rae1 {[%emt 0:08:56]} Qf7 {[%emt 0:04:52]} 23. h4 {[%emt 0:11:14]} h5 {[%emt 0:08:44]} 24. b4 {[%emt 0:04:26]} Kh7 {[%emt 0:03:39]} 25. b5 {[%emt 0:04:35]} Re7 {[%emt 0:04:20]} 26. Rxe7 {[%emt 0:08:39]} Qxe7 {[%emt 0:00:13]} 27. Qd4 {[%emt 0:00:12]} b6 {[%emt 0:03:42]} 28. Rc1 {[%emt 0:01:32]} Rf7 {[%emt 0:00:55]} 29. Kf1 {[%emt 0:02:14]} Qe8 {[%emt 0:01:30]} 30. a4 {[%emt 0:05:03]} Re7 {[%emt 0:00:21]} 31. Qd2 {[%emt 0:01:07]} Qf7 {[%emt 0:02:28]} 32. Rc3 {[%emt 0:05:19]} Qf5 {[%emt 0:05:04]} 33. Qc1 {[%emt 0:06:09]} Qxd5 {[%emt 0:03:31]} 34. Rxc7 {[%emt 0:00:03]} Qe4 {[%emt 0:01:36]} 35. Rc4 {[%emt 0:04:44]} Qe5 {[%emt 0:01:52]} 36. g3 {[%emt 0:03:45]} d5 {[%emt 0:01:25]} 37. Rf4 {[%emt 0:00:53]} d4 {[%emt 0:01:38]} 38. Qc4 {[%emt 0:00:29]} Rd7 {[%emt 0:02:29]} 39. Rf7+ {[%emt 0:01:19]} Rxf7 {[%emt 0:00:11]} 40. Qxf7+ {[%emt 0:00:00]} Kh6 {[%emt 0:00:00]} 41. Qf8+ {[%emt 0:06:25]} Kh7 {[%emt 0:00:46]} 42. Qf7+ {[%emt 0:00:05]} Kh6 {[%emt 0:00:16]} 43. Qf8+ {[%emt 0:00:10]} 1/2-1/2